Cogmind - Beta 10.2 @@@ ROGUE MODE // 2021.01.09 @ 15:33:05 Player: Bar0ti Result: Destroyed by S-27 Virus with Autogun Performance ------------- Evolutions (3) 1500 Regions Visited (6) 1200 Robots Destroyed (18) 90 Value Destroyed (698) 698 Prototype IDs (25) 500 Alien Tech Used (0) 0 Bonus (937) 937 TOTAL SCORE: 4925 Bonus ------- High Alert Combat Kills 23 Follower Combat Kills 729 Aligned with FarCom 300 Friendly Fire -115 Cogmind --------- Core Integrity 0/700 Matter 250/300 Energy 99/100 System Corruption 9% Temperature Cool (0) Movement Core (100) Ox1 Location -7/Factory Parts ------- > --- POWER (1) -------- (None) > --- PROPULSION (4) --- (None) > --- UTILITY (6) ------ (None) > --- WEAPON (2) ------- Great Maul > --- INVENTORY (4) ---- Humpback Compact Battery (300) High-capacity Matter Pod (200) Peak State ------------ > --- POWER ------------ Micro Nuclear Core > --- PROPULSION ------- Armored Wheel > --- UTILITY ---------- Army-in-a-Box > --- WEAPON ----------- Plasma Cannon Assault Cannon > --- INVENTORY -------- Humpback Compact Battery High-capacity Matter Pod [Rating: 67] Favorites ----------- Power Light Deuterium Engine Engine Light Deuterium Engine Power Core Light Nuclear Core Propulsion Armored Wheel Treads Light Treads Wheel Armored Wheel Utility High-capacity Storage Unit Device Advanced Terrain Scanner Storage High-capacity Storage Unit Processor Advanced Visual Processing Unit Protection Powered Armor Weapon Heavy Assault Rifle Energy Gun EM Pulse Gun Energy Cannon EM Pulse Cannon Ballistic Gun Heavy Assault Rifle Ballistic Cannon Assault Cannon Impact Weapon Great Maul Build | -11 -10 -10 -10 -9 -8 -7 ------- Run | Scr Mat Min Exi Min Mat Fac Slots Evolved 6 | . . . . . 4 2 Power . | . . . . . . . Propulsion 2 | . . . . . 2 . Utility 4 | . . . . . 2 2 Weapon . | . . . . . . . Parts Attached 37 | 6 6 . 2 2 9 12 Power 5 | 1 1 . . . 1 2 Engine 2 | 1 . . . . 1 . Core 3 | . 1 . . . . 2 Reactor . | . . . . . . . Propulsion 7 | 2 2 . . . 2 1 Treads 2 | 2 . . . . . . Leg . | . . . . . . . Wheel 5 | . 2 . . . 2 1 Hover . | . . . . . . . Flight . | . . . . . . . Utility 13 | 1 1 . 2 . 4 5 Device 6 | . . . 1 . 2 3 Storage 4 | 1 1 . 1 . 1 . Processor 2 | . . . . . 1 1 Hackware . | . . . . . . . Protection 1 | . . . . . . 1 Artifact . | . . . . . . . Weapon 12 | 2 2 . . 2 2 4 Energy Gun 1 | 1 . . . . . . Energy Cannon 3 | . . . . . 1 2 Ballistic Gun 6 | 1 2 . . 2 1 . Ballistic Cannon 1 | . . . . . . 1 Launcher . | . . . . . . . Special Weapon . | . . . . . . . Impact Weapon 1 | . . . . . . 1 Slashing Weapon . | . . . . . . . Piercing Weapon . | . . . . . . . Special Melee Weapon . | . . . . . . . Unidentified Prototypes 2 | . . . 2 . . . Parts Lost 7 | . . . . . . 7 Power . | . . . . . . . Propulsion 4 | . . . . . . 4 Utility 1 | . . . . . . 1 Weapon 2 | . . . . . . 2 Highest Loss Streak 2 | . . . . . . 2 Average Slot Usage (%) 83 | . 88 100 99 99 98 66 Engine 3 | . 9 . . . 7 3 Core 5 | . 4 14 14 14 1 3 Wheel 22 | . 24 28 28 28 36 13 Device 8 | . . . . . 12 11 Storage 15 | . 18 28 27 28 14 7 Processor 5 | . . . . . 7 9 Energy Cannon 3 | . . . . . 3 6 Ballistic Gun 14 | . 25 28 28 27 14 4 Ballistic Cannon 1 | . . . . . . 2 Naked Turns 43 | . . . . . . 43 Heaviest Build 98 | 13 18 18 47 49 49 98 Greatest Support 48 | 40 40 24 24 24 48 48 Greatest Overweight (x) 8 | . 4 . 1 2 1 8 Average Overweight (x) 1 | . . . . 1 . 3 Largest Inventory Capacity 14 | 6 6 6 14 14 14 12 Average Capacity 10 | 4 6 6 12 14 13 9 Most Carried 14 | 3 6 6 14 14 13 12 Average Carried 9 | 1 5 6 11 14 11 8 Final Capacity 14 | 6 6 6 14 14 12 4 Final Carried 14 | 2 6 6 14 14 12 4 Class Distribution -------------------- 52% | Mutant 47% | Skirmisher Dominant Class ---------------- Mutant | -10/Materials Mutant | -10/Mines Mutant | -10/Exiles Mutant | -9/Mines Skirmisher | -8/Materials Skirmisher | -7/Factory Resources | -11 -10 -10 -10 -9 -8 -7 ----------- Run | Scr Mat Min Exi Min Mat Fac Matter Collected 861 | 183 185 6 90 32 174 191 Remotely . | . . . . . . . Salvage Created 793 | . 126 20 . 56 322 269 Parts 49 | . 10 2 . 1 14 22 Haulers Intercepted 1 | . 1 . . . . . Recyclers Shooed . | . . . . . . . Parts Field Recycled . | . . . . . . . Retrieved Matter . | . . . . . . . Parts Self-Destructed . | . . . . . . . Prevented . | . . . . . . . Kills | -11 -10 -10 -10 -9 -8 -7 ------- Run | Scr Mat Min Exi Min Mat Fac Combat Hostiles Destroyed 14 | . 2 1 . . 7 4 Guns 10 | . 2 1 . . 5 2 Cannons 2 | . . . . . . 2 AOE 2 | . . . . . 2 . Classes Destroyed 7 | . 2 1 . . 1 3 Hauler 1 | . 1 . . . . . Operator 1 | . . . . . . 1 Watcher 1 | . . . . . . 1 Swarmer 2 | . . 1 . . 1 . Grunt 7 | . 2 . . . 4 1 Sentry 3 | . . . . . 2 1 Programmer 2 | . . . . . . 2 Thug 1 | . . . . 1 . . Best Kill Streak 3 | . 2 1 . . 3 1 Combat Bots Only 3 | . 2 1 . . 3 1 Max Kills in Single Turn 2 | . 1 1 . 1 2 1 Gunslinging . | . . . . . . . Exploded 1 | . . . . . 1 . Melee . | . . . . . . . Uniques/NPCs Destroyed . | . . . . . . . Combat | -11 -10 -10 -10 -9 -8 -7 -------- Run | Scr Mat Min Exi Min Mat Fac Damage Taken 2297 | . 76 10 . . 469 1742 Core 842 | . . . . . 135 707 Absorbed by Shields 20 | . . . . . . 20 Core Remaining (%) 91 | 100 . . . 100 75 . Volleys Fired 58 | . 8 1 . 2 18 29 Largest 2 | . 2 2 . 2 2 2 Hottest 124 | . 46 46 . 46 86 124 Shots Fired 113 | . 16 2 . 4 36 55 Gun 65 | . 16 2 . 4 24 19 Cannon 48 | . . . . . 12 36 Launcher . | . . . . . . . Special . | . . . . . . . Kinetic 77 | . 16 2 . 4 24 31 Thermal 24 | . . . . . . 24 Explosive . | . . . . . . . Electromagnetic 12 | . . . . . 12 . Robot Hit Streak 12 | . 7 1 . 1 12 10 Robot Miss Streak 4 | . 1 1 . 2 3 4 Penetration Max . | . . . . . . . Secondary Targets 1 | . 1 . . . . . Max Gunslinging Chain 1 | . 1 . . . . . Shots Hit Robots 83 | . 12 1 . 1 30 39 Core Hits 36 | . 4 1 . 1 17 13 Critical Hits 1 | . . . . . . 1 Critical Kills . | . . . . . . . Critical Parts Destroyed 1 | . . . . . . 1 Melee Attacks 4 | . . . . . . 4 Impact 4 | . . . . . . 4 Slashing . | . . . . . . . Piercing . | . . . . . . . Sneak Attacks . | . . . . . . . Combat Hostiles . | . . . . . . . Follow-up Attacks . | . . . . . . . Damage Inflicted 1720 | . 182 13 . 15 666 844 Guns 716 | . 182 13 . 15 323 183 Cannons 834 | . . . . . 216 618 Explosions 127 | . . . . . 127 . Melee 43 | . . . . . . 43 Ramming . | . . . . . . . Kinetic 890 | . 182 13 . 15 323 357 Thermal 571 | . . . . . 127 444 Explosive . | . . . . . . . Electromagnetic 216 | . . . . . 216 . Impact 43 | . . . . . . 43 Slashing . | . . . . . . . Piercing . | . . . . . . . Highest Corruption 9 | . . . . . . 9 Average Corruption 6 | . . . . . . 6 Corruption Purged . | . . . . . . . Effects 32 | . . . . . . 32 Message Errors 7 | . . . . . . 7 Matter Fused 6 | . . . . . . 6 Heat Flow Errors 4 | . . . . . . 4 Energy Discharges 3 | . . . . . . 3 Parts Rejected 1 | . . . . . . 1 Data Loss (minor) 4 | . . . . . . 4 Data Loss (major) 4 | . . . . . . 4 Misfires 1 | . . . . . . 1 Targeting Errors 2 | . . . . . . 2 Overload Shots . | . . . . . . . Overflow Damage 26 | . . . . . 10 16 Projectiles 16 | . . . . . . 16 Explosions 10 | . . . . . 10 . Melee . | . . . . . . . Knockbacks . | . . . . . . . Impact . | . . . . . . . Kinetic . | . . . . . . . Secondary . | . . . . . . . Self-Inflicted Damage 49 | . . . . . 49 . Shots 1 | . . . . . 1 . Rammed . | . . . . . . . Targets Rammed . | . . . . . . . Kicked . | . . . . . . . Crushed . | . . . . . . . Highest Temperature 378 | . 2 . . . 108 378 Average Temperature 77 | . 1 . . . 42 93 Received Heat Transfer 552 | . 42 . . . 189 321 Siege Activations . | . . . . . . . Robots Corrupted . | . . . . . . . Combat Hostiles . | . . . . . . . Parts Fried 1 | . . . . . 1 . Impact Corruptions . | . . . . . . . Robots Melted . | . . . . . . . Combat Hostiles . | . . . . . . . Parts Melted . | . . . . . . . Heat Transferred 833 | . . . . . 100 733 Parts Sabotaged . | . . . . . . . Parts Stolen . | . . . . . . . Parts Stripped . | . . . . . . . Power Chain Reactions 2 | . . . . . 2 . Missiles Intercepted . | . . . . . . . Alert | -11 -10 -10 -10 -9 -8 -7 ------- Run | Scr Mat Min Exi Min Mat Fac Peak Influence 1162 | . 57 72 . . 135 1162 Initial 60 | . . 22 . . . 60 Average 176 | . 30 37 . . 52 299 Maximum Alert Level 4 | . . . . . . 4 Low Security (%) 80 | 100 100 100 . 100 100 64 Level 1 2 | . . . . . . 4 Level 2 7 | . . . . . . 14 Level 3 3 | . . . . . . 5 Level 4 6 | . . . . . . 11 Level 5 . | . . . . . . . High Security . | . . . . . . . Max Security . | . . . . . . . Squads Dispatched 18 | . 1 . . 1 1 15 Investigation 4 | . 1 . . 1 1 1 Extermination 3 | . . . . . . 3 Reinforcement 4 | . . . . . . 4 Assault 4 | . . . . . . 4 Garrison 3 | . . . . . . 3 Intercept . | . . . . . . . Construction Impeded 1 | . . . . . . 1 Haulers Reinforced . | . . . . . . . Stealth | -11 -10 -10 -10 -9 -8 -7 --------- Run | Scr Mat Min Exi Min Mat Fac Distress Signals 2 | . . . . . . 2 Communications Jammed 1 | . . . . . 1 . Distress Signals . | . . . . . . . Times Spotted 85 | . 2 6 . 3 14 60 Peak Tracking Total 15 | . 2 3 . 3 7 15 Tactical Retreats 10 | . . 2 . . . 8 Traps | -11 -10 -10 -10 -9 -8 -7 ------- Run | Scr Mat Min Exi Min Mat Fac Traps Triggered 4 | . . . . . . 4 Indirectly . | . . . . . . . Trap Hack Attempts . | . . . . . . . Triggered . | . . . . . . . Disarmed . | . . . . . . . Reprogrammed . | . . . . . . . Reused . | . . . . . . . Traps Extracted . | . . . . . . . Installed . | . . . . . . . Triggered . | . . . . . . . Machines | -11 -10 -10 -10 -9 -8 -7 ---------- Run | Scr Mat Min Exi Min Mat Fac Machines Disabled 6 | . . . . . 2 4 Max in Single Turn 1 | . . . . . 1 1 Machines Sabotaged . | . . . . . . . Garrisons Compromised . | . . . . . . . Overloaded Fab Kills . | . . . . . . . Fab Network Shutdowns . | . . . . . . . Hacking | -11 -10 -10 -10 -9 -8 -7 --------- Run | Scr Mat Min Exi Min Mat Fac Machines Accessed 17 | . 1 . 5 1 6 4 Terminals 7 | . 1 . . . 4 2 Fabricators . | . . . . . . . Repair Stations . | . . . . . . . Recycling Units 2 | . . . . . 1 1 Scanalyzers 1 | . . . . . 1 . Garrison Access 1 | . . . . . . 1 Total Hacks 81 | . 2 . 50 1 22 6 Successful 70 | . 2 . 50 1 14 3 Failed 11 | . . . . . 8 3 Catastrophic 3 | . . . . . 1 2 Database Lockouts . | . . . . . . . Manual 2 | . . . 2 . . . Terminals 25 | . 2 . . . 20 3 Fabricators . | . . . . . . . Repair Stations . | . . . . . . . Recycling Units 2 | . . . . . 1 1 Scanalyzers 1 | . . . . . 1 . Garrison Access 2 | . . . . . . 2 Terminal Hacks 67 | . 2 . 50 1 12 2 Record 51 | . . . 49 . 2 . Prototype ID Bank 1 | . 1 . . . . . Open Door 1 | . . . . 1 . . Emergency Access Points 2 | . . . . . 1 1 Terminal Index 1 | . . . . . 1 . Alert Level 1 | . 1 . . . . . Locate Traps 1 | . . . . . . 1 Surveillance Status 1 | . . . . . 1 . Transport Status 1 | . . . . . 1 . Assault Status 1 | . . . . . 1 . Recall Investigation 1 | . . . . . 1 . Hauler Manifests 1 | . . . . . 1 . Registered Components 1 | . . . . . 1 . Zone Layout 2 | . . . . . 2 . EX-Prototype ID Bank 1 | . . . 1 . . . Fabricator Hacks . | . . . . . . . Repair Station Hacks . | . . . . . . . Recycling Unit Hacks 2 | . . . . . 1 1 Retrieve Components 2 | . . . . . 1 1 Scanalyzer 1 | . . . . . 1 . Insert Component 1 | . . . . . 1 . Garrison Access Hacks . | . . . . . . . Unauthorized Hacks . | . . . . . . . Terminals . | . . . . . . . Fabricators . | . . . . . . . Repair Stations . | . . . . . . . Recycling Units . | . . . . . . . Scanalyzers . | . . . . . . . Garrison Access . | . . . . . . . Data Cores Recovered 1 | . . . . . . 1 Used . | . . . . . . . Hacking Detections 8 | . . . . . 5 3 Full Trace Events 2 | . . . . . 1 1 Feedback Events 1 | . . . . . . 1 Corruption 1 | . . . . . . 1 Feedback Blocked . | . . . . . . . Robot Schematics Acquired . | . . . . . . . Robots Built . | . . . . . . . Matter . | . . . . . . . Time . | . . . . . . . Total Robot Build Rating . | . . . . . . . Part Schematics Acquired . | . . . . . . . Parts Built . | . . . . . . . Matter . | . . . . . . . Time . | . . . . . . . Total Part Build Rating . | . . . . . . . Parts Repaired . | . . . . . . . Time . | . . . . . . . Parts Recycled . | . . . . . . . Recycled Matter . | . . . . . . . Retrieved Matter . | . . . . . . . Retrieved Components 8 | . . . . . 8 . Parts Scanalyzed . | . . . . . . . Part Schematics Acquired . | . . . . . . . Parts Damaged . | . . . . . . . Bothacking | -11 -10 -10 -10 -9 -8 -7 ------------ Run | Scr Mat Min Exi Min Mat Fac Used RIF Installer . | . . . . . . . Robots Hacked . | . . . . . . . Non-combat . | . . . . . . . Combat . | . . . . . . . Robot Hacks Applied . | . . . . . . . Relay Couplers Released . | . . . . . . . Robots Rewired . | . . . . . . . Allies Hacked . | . . . . . . . Hacks Repelled . | . . . . . . . Allies | -11 -10 -10 -10 -9 -8 -7 -------- Run | Scr Mat Min Exi Min Mat Fac Total Allies . | . . . . . . . Largest Group . | . . . . . . . Highest-Rated Group . | . . . . . . . Highest-Rated Ally . | . . . . . . . Total Orders . | . . . . . . . Ally Attacks 246 | . . . . . . 246 Total Damage 5463 | . . . . . . 5463 Kills 52 | . . . . . . 52 Allies Corrupted 2 | . . . . . . 2 Allies Melted . | . . . . . . . Intel | -11 -10 -10 -10 -9 -8 -7 ------- Run | Scr Mat Min Exi Min Mat Fac Robot Analysis Total . | . . . . . . . Derelict Logs Recovered 4 | . . 2 . 2 . . Drone Launches 34 | . . . . . . 34 Drone Recoveries 4 | . . . . . . 4 Exploration | -11 -10 -10 -10 -9 -8 -7 ------------- Run | Scr Mat Min Exi Min Mat Fac Turns Passed 4537 | 87 229 162 716 329 973 2041 Spaces Moved 3000 | 51 173 126 717 264 569 1100 Core 96 | 7 3 . . . . 86 Treads 54 | 44 10 . . . . . Legs . | . . . . . . . Wheels 2850 | . 160 126 717 264 569 1014 Hover . | . . . . . . . Flight . | . . . . . . . Fastest Speed 50 | 50 90 90 90 100 90 50 Average Speed 107 | 144 96 90 97 107 94 123 Slowest Speed 250 | 160 250 90 100 110 100 170 Overloaded Moves . | . . . . . . . Propulsion Burnouts . | . . . . . . . Robots Hopped . | . . . . . . . Cave-ins Triggered . | . . . . . . . Time Travels 1 | . . . 1 . . . Exploration Rate (%) 38 | 4 27 31 94 45 42 24 Regions Visited 6 Branch Regions 3 Pre-discovered Areas 3 | . . 1 1 1 . . Known Exits Taken . | . . . . . . . Unknown Exits Taken 6 | 1 1 1 1 1 1 . Scrap Searched 1 | . . 1 . . . . Spaces Dug . | . . . . . . . Terrain Destroyed 5 | . . . . . 4 1 Melee . | . . . . . . . Projectile 1 | . . . . . . 1 AOE 4 | . . . . . 4 . Terrain Rammed . | . . . . . . . Walls Destroyed . | . . . . . . . Machines Disabled . | . . . . . . . Actions | -11 -10 -10 -10 -9 -8 -7 --------- Run | Scr Mat Min Exi Min Mat Fac Total 4191 | 64 220 172 738 304 968 1725 Wait 1014 | . 17 46 . 35 357 559 Move 2994 | 50 172 125 716 263 568 1100 Hop . | . . . . . . . Pick Up 41 | 8 10 . 10 . 8 5 Fast Attach 15 | . 2 . 2 2 2 7 Attach 18 | 6 4 . . . 5 3 Detach . | . . . . . . . Swap 4 | . . . . . 2 2 Drop 43 | . 7 . 10 2 8 16 Fire 58 | . 8 1 . 2 18 29 Melee 4 | . . . . . . 4 Ram . | . . . . . . . Kick . | . . . . . . . Crush . | . . . . . . . Escape Stasis . | . . . . . . . Rewire . | . . . . . . . Trap . | . . . . . . . Miscellaneous . | . . . . . . . Route ------- -11/Scrapyard -10/Materials (discovered 2 exits: [*Mat] / [*Min]) -10/Mines (discovered 2 exits: [*Mat] / *Exi) -10/Exiles (discovered 2 exits: *Min x2) -9/Mines -8/Materials (discovered 2 exits: *Fac / Sto) -7/Factory History --------- Turn | Location | Event 2 | -11/Scrapyard | Met Revision 17 4 | -11/Scrapyard | Discovered new exit (range 15) 88 | -11/Scrapyard | Entered Materials 151 | -10/Materials | Discovered new exit (range 15) 208 | -10/Materials | Met 8R-AWN 255 | -10/Materials | Discovered new exit (range 8) 317 | -10/Materials | Entered Mines 318 | -10/Mines | Build established: Mutant 318 | -10/Mines | Followed 8R-AWN into the Mines 337 | -10/Mines | Learned location of Mines (-9) 339 | -10/Mines | Discovered new exit (range 6) 458 | -10/Mines | Discovered new exit (range 5) 479 | -10/Mines | Entered Exiles 493 | -10/Exiles | Discovered new exit (range 15) 513 | -10/Exiles | Welcomed by 8R-AWN 527 | -10/Exiles | Met EX-HEX 563 | -10/Exiles | Met EX-BIN 579 | -10/Exiles | Aligned with FarCom system 579 | -10/Exiles | Given EX-Vault access code 627 | -10/Exiles | Opened EX-Vault 632 | -10/Exiles | Found Prototype Device 632 | -10/Exiles | Identified Supersonic Drone Bay 639 | -10/Exiles | Found Prototype Device 639 | -10/Exiles | Identified Chronowheel 639 | -10/Exiles | Activated Chronowheel 639 | -10/Exiles | Spacetime reconverged on an earlier point 649 | -10/Exiles | Found Prototype Device 671 | -10/Exiles | Identified Army-in-a-Box 691 | -10/Exiles | Warned to stay clear of 0b10 Research branches 717 | -10/Exiles | Met EX-DEC 726 | -10/Exiles | Learned location of Zion (-6) 807 | -10/Exiles | Discovered new exit (range 14) 891 | -10/Exiles | Visited The Gauntlet 1195 | -10/Exiles | Left Exiles lab with Army-in-a-Box 1195 | -10/Exiles | Entered Mines 1198 | -9/Mines | Learned Materials emergency access door positions 1202 | -9/Mines | Met a Derelict shopkeep closing up shop 1231 | -9/Mines | Met a Derelict bent on vengeance 1240 | -9/Mines | Discovered new exit (range 9) 1429 | -9/Mines | Assembled infested the area 1524 | -9/Mines | Entered Materials 1524 | -8/Materials | Evolved 4 slots: Propulsion x2, Utility x2 1525 | -8/Materials | Identified exit to Storage 1835 | -8/Materials | Build established: Skirmisher 2492 | -8/Materials | Discovered new exit (range 8) 2497 | -8/Materials | Entered Factory 2497 | -7/Factory | Evolved 2 slots: Utility x2 3261 | -7/Factory | Found Powered Armor 4062 | -7/Factory | Build established: Mutant 4097 | -7/Factory | First assault squad dispatched 4219 | -7/Factory | Garrison activated, responded to threat 4489 | -7/Factory | Core integrity fell below 50% 4523 | -7/Factory | Core integrity fell below 20% 4538 | -7/Factory | Destroyed by S-27 Virus with Autogun Last Messages --------------- 04462_ System corrupted: Heat flow error (+174). 04466_ Y-54 Guardian suffers critical hit. 04466_ Destroyed Lgt. Treads. 04479_ Arm. Wheel destroyed. 04481_ Dropped Army-in-a-Box. 04481_ Dropped Plasma Cannon. 04482_ Dropped Assault Cannon. 04482_ Dropped Mic. Nuclear Core. 04492_ System corrupted: Component data lost. 04497_ ALERT: Significant disruption in Zone 9C, assault force dispatched. 04508_ Penetrated by Slug. 04508_ R-06 Scavenger destroyed. 04513_ O-24 Administrator: "IFF HANDSHAKE FAILED. SECURING TERMINAL." 04515_ ALERT: Hostiles spotted, dispatching reinforcements to Terminal F010. 04521_ ALERT: Hostiles spotted, dispatching reinforcements to Terminal F003. 04525_ Acquired Great Maul. 04531_ System corrupted: Great Maul targeting data glitched. 04535_ %NWLSBYI5B%G